Workbook

Sheet Feuil2
B1: 90 | C1: 90 | D1: 90 | E1: 90 | F1: =SUM(B1:E1) -> 360 | O1: gr1 | P1: gr2 | Q1: gr3 | R1: gr4 | S1: gr5 | T1: gr6 | U1: gr7 | W1: gr 1 | X1: 22 | Y1: =X1/$X$8 -> 0.1538461538 | Z1: =O16 -> 0.15 | AA1: =ABS(Z1-Y1) -> 0.003846153846 | AB1: =AA1/Z1 -> 0.02564102564
A2: 06:00:00 | B2: 0 | C2: 45 | D2: 0 | E2: 100 | F2: =SUM(B2:E2) -> 145 | G2: Ici on a1x90 en C2 et 2x90 en E2. C'est ok. | O2: 45 | P2: 78.5 | Q2: 100 | R2: 155.7 | S2: 171 | T2: 226.8 | U2: 0 | W2: gr 2 | X2: 20 | Y2: =X2/$X$8 -> 0.1398601399 | Z2: =P16 -> 0.15 | AA2: =ABS(Z2-Y2) -> 0.01013986014 | AB2: 0.0675990676
A3: =A2+(5/(24*60)) -> 06:05:00 | B3: 0 | C3: 45 | D3: 0 | E3: 100 | F3: =SUM(B3:E3) -> 145 | G3: Idem | O3: 45 | P3: 78.5 | Q3: 100 | R3: 155.7 | S3: 171 | T3: 226.8 | U3: 0 | W3: gr 3 | X3: 26 | Y3: 0.1818181818 | Z3: =Q16 -> 0.1875 | AA3: 0.005681818182 | AB3: 0.0303030303
A4: 06:10:00 | B4: 100 | C4: 45 | D4: 171 | E4: 96.7 | F4: 412.7 | G4: Ici, c'est impossible puisque B4 utilise 2x90, C4 utilise 1x90, D4 2x90 et E4 2x90. Or j'aimerai n'avoir que 4x90 maximum… | O4: 45 | P4: 77 | Q4: 96.7 | R4: 142.3 | S4: 162.6 | T4: 179.7 | W4: gr 4 | X4: 5 | Y4: 0.03496503497 | Z4: =R16 -> 0.0375 | AA4: 0.002534965035 | AB4: 0.0675990676
A5: 06:15:00 | B5: 100 | C5: 44.5 | D5: 171 | E5: 86.7 | F5: 402.2 | O5: 44.5 | P5: 73 | Q5: 86.7 | R5: 128.7 | S5: 147.3 | T5: 168.5 | W5: gr 5 | X5: 7 | Y5: 0.04895104895 | Z5: =S16 -> 0.0375 | AA5: 0.01145104895 | AB5: 0.3053613054
A6: 06:20:00 | B6: 96.7 | C6: 43 | D6: 162.6 | E6: 78 | F6: 380.3 | O6: 43 | P6: 67 | Q6: 78 | R6: 116 | T6: 151 | W6: gr 6 | X6: 4 | Y6: 0.02797202797 | Z6: =T16 -> 0.0375 | AA6: 0.009527972028 | AB6: 0.2540792541
A7: 06:25:00 | B7: 86.7 | C7: 42 | D7: 147.3 | E7: 70.8 | F7: 346.8 | O7: 42 | P7: 61 | Q7: 70.8 | W7: gr 7 | X7: 59 | Y7: 0.4125874126 | Z7: =U16 -> 0.4 | AA7: 0.01258741259 | AB7: 0.03146853147 | AC7: 0.4467005076
A8: 06:30:00 | B8: 78 | C8: 40.5 | D8: 45 | E8: 0 | F8: 163.5 | O8: 40.5 | W8: total | X8: =SUM(X1:X7) -> 143 | Z8: =SUM(Z1:Z7) -> 1 | AA8: =SUM(AA1:AA7) -> 0.05576923077 | AB8: =SUM(AB1:AB7) -> 0.7820512821
A9: 06:35:00 | B9: 70.8 | C9: 39 | D9: 45 | E9: 0 | F9: 154.8 | O9: 39
A10: 06:40:00 | B10: 0 | C10: 37 | D10: 45 | E10: 0 | F10: 82 | O10: 37
A11: 06:45:00 | B11: 0 | C11: 36 | D11: 44.5 | E11: 0 | F11: 80.5 | O11: 36
A12: 06:50:00 | B12: 0 | C12: 100 | D12: 43 | E12: 78.5 | F12: 221.5
A13: 06:55:00 | B13: 0 | C13: 100 | D13: 42 | E13: 78.5 | F13: 220.5
A14: 07:00:00 | B14: 100 | C14: 96.7 | D14: 40.5 | E14: 77 | F14: 314.2
A15: 07:05:00 | B15: 100 | C15: 86.7 | D15: 39 | E15: 73 | F15: 298.7 | G15: Ici (sur la droite), nous n'avons jamais plus de 4x90. | I15: 90 | J15: 90 | K15: 90 | L15: 90 | M15: =SUM(I15:L15) -> 360
A16: 07:10:00 | B16: 96.7 | C16: 78 | D16: 37 | E16: 67 | F16: 278.7 | I16: 45(1x90) | J16: 0 | K16: 45 (1x90) | L16: 100 (2x90) | O16: 0.15 | P16: 0.15 | Q16: 0.1875 | R16: 0.0375 | S16: 0.0375 | T16: 0.0375 | U16: 0.4
A17: 07:15:00 | B17: 86.7 | C17: 70.8 | D17: 36 | E17: 61 | F17: 254.5 | I17: 45 | J17: 0 | K17: 45 | L17: 100 | M17: =SUM(I17:L17) -> 190 | O17: =SUM(O16:U16) -> 1
A18: 07:20:00 | B18: 78 | C18: 0 | D18: 155.7 | E18: 78.5 | F18: 312.2 | I18: 45 | J18: 0 | K18: 45 | L18: 96.7 | M18: 186.7
A19: 07:25:00 | B19: 70.8 | C19: 0 | D19: 155.7 | E19: 78.5 | F19: 305 | I19: 44.5 | J19: 0 | K19: 44.5 | L19: 86.7 | M19: 175.7
A20: 07:30:00 | B20: 100 | C20: 100 | D20: 142.3 | E20: 77 | F20: 419.3 | I20: 43 | J20: 45 | K20: 43 | L20: 78 | M20: 209
A21: 07:35:00 | B21: 100 | C21: 100 | D21: 128.7 | E21: 73 | F21: 401.7 | I21: 42 | J21: 45 | K21: 42 | L21: 70.8 | M21: 199.8
A22: 07:40:00 | B22: 96.7 | C22: 96.7 | D22: 116 | E22: 67 | F22: 376.4 | I22: 40.5 | J22: 45 | K22: 40.5 | L22: 0 | M22: 126
A23: 07:45:00 | B23: 86.7 | C23: 86.7 | D23: 0 | E23: 61 | F23: 234.4 | I23: 39 | J23: 44.5 | K23: 39 | L23: 0 | M23: 122.5
A24: 07:50:00 | B24: 78 | C24: 78 | D24: 0 | E24: 171 | F24: 327 | I24: 37 | J24: 43 | K24: 37 | L24: 0 | M24: 117
A25: 07:55:00 | B25: 70.8 | C25: 70.8 | D25: 78.5 | E25: 171 | F25: 391.1 | I25: 36 | J25: 42 | K25: 36 | L25: 0 | M25: 114
A26: 08:00:00 | B26: 0 | C26: 0 | D26: 78.5 | E26: 162.6 | F26: 241.1 | I26: 0 | J26: 40.5 | K26: 78.5 | L26: 155.7 | M26: 274.7
A27: 08:05:00 | B27: 0 | C27: 0 | D27: 77 | E27: 147.3 | F27: 224.3 | I27: 0 | J27: 39 | K27: 78.5 | L27: 155.7 | M27: 273.2
A28: 08:10:00 | B28: 0 | C28: 0 | D28: 73 | E28: 45 | F28: 118 | I28: 0 | J28: 37 | K28: 77 | L28: 142.3 | M28: 256.3
A29: 08:15:00 | B29: 0 | C29: 0 | D29: 67 | E29: 45 | F29: 112 | I29: 0 | J29: 36 | K29: 73 | L29: 128.7 | M29: 237.7
A30: 08:20:00 | B30: 0 | C30: 155.7 | D30: 61 | E30: 45 | F30: 261.7 | K30: 67 | L30: 116 | M30: 183
A31: 08:25:00 | B31: 0 | C31: 155.7 | D31: 78.5 | E31: 44.5 | F31: 278.7 | K31: 61 | M31: 61
A32: 08:30:00 | B32: 45 | C32: 142.3 | D32: 78.5 | E32: 43 | F32: 308.8
A33: 08:35:00 | B33: 45 | C33: 128.7 | D33: 77 | E33: 42 | F33: 292.7
A34: 08:40:00 | B34: 45 | C34: 116 | D34: 73 | E34: 40.5 | F34: 274.5
A35: 08:45:00 | B35: 44.5 | C35: 0 | D35: 67 | E35: 39 | F35: 150.5
A36: 08:50:00 | B36: 43 | C36: 0 | D36: 61 | E36: 37 | F36: 141
A37: 08:55:00 | B37: 42 | C37: 0 | D37: 0 | E37: 36 | F37: 78
A38: 09:00:00 | B38: 40.5 | C38: 0 | D38: 0 | E38: 0 | F38: 40.5
A39: 09:05:00 | B39: 39 | C39: 0 | D39: 78.5 | E39: 0 | F39: 117.5
A40: 09:10:00 | B40: 37 | C40: 0 | D40: 78.5 | E40: 100 | F40: 215.5
A41: 09:15:00 | B41: 36 | C41: 45 | D41: 77 | E41: 100 | F41: 258
A42: 09:20:00 | B42: 78.5 | C42: 45 | D42: 73 | E42: 96.7 | F42: 293.2
A43: 09:25:00 | B43: 78.5 | C43: 45 | D43: 67 | E43: 86.7 | F43: 277.2
A44: 09:30:00 | B44: 77 | C44: 44.5 | D44: 61 | E44: 78 | F44: 260.5
A45: 09:35:00 | B45: 73 | C45: 43 | D45: 100 | E45: 70.8 | F45: 286.8
A46: 09:40:00 | B46: 67 | C46: 42 | D46: 100 | E46: 78.5 | F46: 287.5
A47: 09:45:00 | B47: 61 | C47: 40.5 | D47: 96.7 | E47: 78.5 | F47: 276.7
A48: 09:50:00 | B48: 45 | C48: 39 | D48: 86.7 | E48: 77 | F48: 247.7
A49: 09:55:00 | B49: 45 | C49: 37 | D49: 78 | E49: 73 | F49: 233
A50: 10:00:00 | B50: 45 | C50: 36 | D50: 70.8 | E50: 67 | F50: 218.8
A51: 10:05:00 | B51: 44.5 | C51: 0 | D51: 78.5 | E51: 61 | F51: 184
A52: 10:10:00 | B52: 43 | C52: 0 | D52: 78.5 | E52: 155.7 | F52: 277.2
A53: 10:15:00 | B53: 42 | C53: 0 | D53: 77 | E53: 155.7 | F53: 274.7
A54: 10:20:00 | B54: 40.5 | C54: 0 | D54: 73 | E54: 142.3 | F54: 255.8
A55: 10:25:00 | B55: 39 | C55: 0 | D55: 67 | E55: 128.7 | F55: 234.7
A56: 10:30:00 | B56: 37 | C56: 0 | D56: 61 | E56: 116 | F56: 214
A57: 10:35:00 | B57: 36 | C57: 100 | D57: 0 | E57: 100 | F57: 236
A58: 10:40:00 | B58: 45 | C58: 100 | D58: 0 | E58: 100 | F58: 245
A59: 10:45:00 | B59: 45 | C59: 96.7 | D59: 100 | E59: 96.7 | F59: 338.4
A60: 10:50:00 | B60: 45 | C60: 86.7 | D60: 100 | E60: 86.7 | F60: 318.4
A61: 10:55:00 | B61: 44.5 | C61: 78 | D61: 96.7 | E61: 78 | F61: 297.2
A62: 11:00:00 | B62: 43 | C62: 70.8 | D62: 86.7 | E62: 70.8 | F62: 271.3
A63: 11:05:00 | B63: 42 | C63: 78.5 | D63: 78 | E63: 100 | F63: 298.5
A64: 11:10:00 | B64: 40.5 | C64: 78.5 | D64: 70.8 | E64: 100 | F64: 289.8
A65: 11:15:00 | B65: 39 | C65: 77 | D65: 0 | E65: 96.7 | F65: 212.7
A66: 11:20:00 | B66: 37 | C66: 73 | D66: 0 | E66: 86.7 | F66: 196.7
A67: =A66+(5/(24*60)) -> 11:25:00 | B67: 36 | C67: 67 | D67: 0 | E67: 78 | F67: =SUM(B67:E67) -> 181
A68: 11:30:00 | B68: 45 | C68: 61 | D68: 0 | E68: 70.8 | F68: 176.8
A69: 11:35:00 | B69: 45 | C69: 78.5 | D69: 171 | E69: 100 | F69: 394.5
A70: 11:40:00 | B70: 45 | C70: 78.5 | D70: 171 | E70: 100 | F70: 394.5
A71: 11:45:00 | B71: 44.5 | C71: 77 | D71: 162.6 | E71: 96.7 | F71: 380.8
A72: 11:50:00 | B72: 43 | C72: 73 | D72: 147.3 | E72: 86.7 | F72: 350
A73: 11:55:00 | B73: 42 | C73: 67 | D73: 0 | E73: 78 | F73: 187
A74: 12:00:00 | B74: 40.5 | C74: 61 | D74: 0 | E74: 70.8 | F74: 172.3
A75: 12:05:00 | B75: 39 | C75: 0 | D75: 0 | E75: 0 | F75: 39
A76: 12:10:00 | B76: 37 | C76: 0 | D76: 0 | E76: 0 | F76: 37
A77: 12:15:00 | B77: 36 | C77: 171 | D77: 45 | E77: 78.5 | F77: 330.5
A78: 12:20:00 | B78: 0 | C78: 171 | D78: 45 | E78: 78.5 | F78: 294.5
A79: 12:25:00 | B79: 0 | C79: 162.6 | D79: 45 | E79: 77 | F79: 284.6
A80: 12:30:00 | B80: 45 | C80: 147.3 | D80: 44.5 | E80: 73 | F80: 309.8
A81: 12:35:00 | B81: 45 | C81: 45 | D81: 43 | E81: 67 | F81: 200
A82: 12:40:00 | B82: 45 | C82: 45 | D82: 42 | E82: 61 | F82: 193
A83: 12:45:00 | B83: 44.5 | C83: 45 | D83: 40.5 | E83: 78.5 | F83: 208.5
A84: 12:50:00 | B84: 43 | C84: 44.5 | D84: 39 | E84: 78.5 | F84: 205
A85: 12:55:00 | B85: 42 | C85: 43 | D85: 37 | E85: 77 | F85: 199
A86: 13:00:00 | B86: 40.5 | C86: 42 | D86: 36 | E86: 73 | F86: 191.5
A87: 13:05:00 | B87: 39 | C87: 40.5 | D87: 78.5 | E87: 67 | F87: 225
A88: 13:10:00 | B88: 37 | C88: 39 | D88: 78.5 | E88: 61 | F88: 215.5
A89: 13:15:00 | B89: 36 | C89: 37 | D89: 77 | E89: 0 | F89: 150
A90: 13:20:00 | B90: 45 | C90: 36 | D90: 73 | E90: 0 | F90: 154
A91: 13:25:00 | B91: 45 | C91: 0 | D91: 67 | E91: 171 | F91: 283
A92: 13:30:00 | B92: 45 | C92: 0 | D92: 61 | E92: 171 | F92: 277
A93: 13:35:00 | B93: 44.5 | C93: 0 | D93: 45 | E93: 162.6 | F93: 252.1
A94: 13:40:00 | B94: 43 | C94: 0 | D94: 45 | E94: 147.3 | F94: 235.3
A95: 13:45:00 | B95: 42 | C95: 0 | D95: 45 | E95: 226.8 | F95: 313.8
A96: 13:50:00 | B96: 40.5 | C96: 0 | D96: 44.5 | E96: 226.8 | F96: 311.8
A97: 13:55:00 | B97: 39 | C97: 0 | D97: 43 | E97: 179.7 | F97: 261.7
A98: 14:00:00 | B98: 37 | C98: 0 | D98: 42 | E98: 168.5 | F98: 247.5
A99: 14:05:00 | B99: 36 | C99: 155.7 | D99: 40.5 | E99: 151 | F99: 383.2
A100: 14:10:00 | B100: 45 | C100: 155.7 | D100: 39 | E100: 45 | F100: 284.7
A101: 14:15:00 | B101: 45 | C101: 142.3 | D101: 37 | E101: 45 | F101: 269.3
A102: 14:20:00 | B102: 45 | C102: 128.7 | D102: 36 | E102: 45 | F102: 254.7
A103: 14:25:00 | B103: 44.5 | C103: 116 | D103: 0 | E103: 44.5 | F103: 205
A104: 14:30:00 | B104: 43 | C104: 45 | D104: 0 | E104: 43 | F104: 131
A105: 14:35:00 | B105: 42 | C105: 45 | D105: 78.5 | E105: 42 | F105: 207.5
A106: 14:40:00 | B106: 40.5 | C106: 45 | D106: 78.5 | E106: 40.5 | F106: 204.5
A107: 14:45:00 | B107: 39 | C107: 44.5 | D107: 77 | E107: 39 | F107: 199.5
A108: 14:50:00 | B108: 37 | C108: 43 | D108: 73 | E108: 37 | F108: 190
A109: 14:55:00 | B109: 36 | C109: 42 | D109: 67 | E109: 36 | F109: 181
A110: 15:00:00 | B110: 0 | C110: 40.5 | D110: 61 | E110: 0 | F110: 101.5
A111: 15:05:00 | B111: 0 | C111: 39 | D111: 100 | E111: 0 | F111: 139
A112: 15:10:00 | B112: 78.5 | C112: 37 | D112: 100 | E112: 100 | F112: 315.5
A113: 15:15:00 | B113: 78.5 | C113: 36 | D113: 96.7 | E113: 100 | F113: 311.2
A114: 15:20:00 | B114: 77 | C114: 0 | D114: 86.7 | E114: 96.7 | F114: 260.4
A115: 15:25:00 | B115: 73 | C115: 0 | D115: 78 | E115: 86.7 | F115: 237.7
A116: 15:30:00 | B116: 67 | C116: 78.5 | D116: 70.8 | E116: 78 | F116: 294.3
A117: 15:35:00 | B117: 61 | C117: 78.5 | D117: 45 | E117: 70.8 | F117: 255.3
A118: 15:40:00 | B118: 0 | C118: 77 | D118: 45 | E118: 0 | F118: 122
A119: 15:45:00 | B119: 0 | C119: 73 | D119: 45 | E119: 0 | F119: 118
A120: 15:50:00 | B120: 0 | C120: 67 | D120: 44.5 | E120: 0 | F120: 111.5
A121: 15:55:00 | B121: 0 | C121: 61 | D121: 43 | E121: 0 | F121: 104
A122: 16:00:00 | B122: 0 | C122: 226.8 | D122: 42 | E122: 100 | F122: 368.8
A123: 16:05:00 | B123: 0 | C123: 226.8 | D123: 40.5 | E123: 100 | F123: 367.3
A124: 16:10:00 | B124: 226.8 | C124: 179.7 | D124: 39 | E124: 96.7 | F124: 542.2
A125: 16:15:00 | B125: 226.8 | C125: 168.5 | D125: 37 | E125: 86.7 | F125: 519
A126: 16:20:00 | B126: 179.7 | C126: 151 | D126: 36 | E126: 78 | F126: 444.7
A127: 16:25:00 | B127: 168.5 | C127: 100 | D127: 45 | E127: 70.8 | F127: 384.3
A128: 16:30:00 | B128: 151 | C128: 100 | D128: 45 | E128: 100 | F128: 396
A129: 16:35:00 | B129: 100 | C129: 96.7 | D129: 45 | E129: 100 | F129: 341.7
A130: 16:40:00 | B130: 100 | C130: 86.7 | D130: 44.5 | E130: 96.7 | F130: 327.9
A131: =A130+(5/(24*60)) -> 16:45:00 | B131: 96.7 | C131: 78 | D131: 43 | E131: 86.7 | F131: =SUM(B131:E131) -> 304.4
A132: 16:50:00 | B132: 86.7 | C132: 70.8 | D132: 42 | E132: 78 | F132: 277.5
A133: 16:55:00 | B133: 78 | C133: 0 | D133: 40.5 | E133: 70.8 | F133: 189.3
A134: 17:00:00 | B134: 70.8 | C134: 0 | D134: 39 | E134: 0 | F134: 109.8
A135: 17:05:00 | B135: 45 | C135: 100 | D135: 37 | E135: 0 | F135: 182
A136: 17:10:00 | B136: 45 | C136: 100 | D136: 36 | E136: 0 | F136: 181
A137: 17:15:00 | B137: 45 | C137: 96.7 | D137: 78.5 | E137: 0 | F137: 220.2
A138: 17:20:00 | B138: 44.5 | C138: 86.7 | D138: 78.5 | E138: 0 | F138: 209.7
A139: 17:25:00 | B139: 43 | C139: 78 | D139: 77 | E139: 0 | F139: 198
A140: 17:30:00 | B140: 42 | C140: 70.8 | D140: 73 | E140: 100 | F140: 285.8
A141: 17:35:00 | B141: 40.5 | C141: 0 | D141: 67 | E141: 100 | F141: 207.5
A142: 17:40:00 | B142: 39 | C142: 0 | D142: 61 | E142: 96.7 | F142: 196.7
A143: 17:45:00 | B143: 37 | C143: 45 | D143: 0 | E143: 86.7 | F143: 168.7
A144: 17:50:00 | B144: 36 | C144: 45 | D144: 0 | E144: 78 | F144: 159
A145: 17:55:00 | B145: 0 | C145: 45 | D145: 100 | E145: 70.8 | F145: 215.8
A146: 18:00:00 | B146: 0 | C146: 44.5 | D146: 100 | E146: 100 | F146: 244.5
A147: 18:05:00 | B147: 0 | C147: 43 | D147: 96.7 | E147: 100 | F147: 239.7
A148: 18:10:00 | B148: 0 | C148: 42 | D148: 86.7 | E148: 96.7 | F148: 225.4
A149: 18:15:00 | B149: 100 | C149: 40.5 | D149: 78 | E149: 86.7 | F149: 305.2
A150: 18:20:00 | B150: 100 | C150: 39 | D150: 70.8 | E150: 78 | F150: 287.8
A151: 18:25:00 | B151: 96.7 | C151: 37 | D151: 0 | E151: 70.8 | F151: 204.5
A152: 18:30:00 | B152: 86.7 | C152: 36 | D152: 0 | E152: 0 | F152: 122.7
A153: 18:35:00 | B153: 78 | C153: 155.7 | D153: 45 | E153: 0 | F153: 278.7
A154: 18:40:00 | B154: 70.8 | C154: 155.7 | D154: 45 | E154: 78.5 | F154: 350
A155: 18:45:00 | B155: 0 | C155: 142.3 | D155: 45 | E155: 78.5 | F155: 265.8
A156: 18:50:00 | B156: 0 | C156: 128.7 | D156: 44.5 | E156: 77 | F156: 250.2
A157: 18:55:00 | B157: 0 | C157: 116 | D157: 43 | E157: 73 | F157: 232
A158: 19:00:00 | B158: 0 | C158: 78.5 | D158: 42 | E158: 67 | F158: 187.5
A159: 19:05:00 | B159: 0 | C159: 78.5 | D159: 40.5 | E159: 61 | F159: 180
A160: 19:10:00 | B160: 0 | C160: 77 | D160: 39 | E160: 171 | F160: 287
A161: 19:15:00 | B161: 100 | C161: 73 | D161: 37 | E161: 171 | F161: 381
A162: 19:20:00 | B162: 100 | C162: 67 | D162: 36 | E162: 162.6 | F162: 365.6
A163: 19:25:00 | B163: 96.7 | C163: 61 | D163: 171 | E163: 147.3 | F163: 476
A164: 19:30:00 | B164: 86.7 | C164: 0 | D164: 171 | E164: 0 | F164: 257.7
A165: 19:35:00 | B165: 78 | C165: 0 | D165: 162.6 | E165: 0 | F165: 240.6
A166: 19:40:00 | B166: 70.8 | C166: 100 | D166: 147.3 | E166: 45 | F166: 363.1
A167: 19:45:00 | B167: 78.5 | C167: 100 | D167: 0 | E167: 45 | F167: 223.5
A168: 19:50:00 | B168: 78.5 | C168: 96.7 | D168: 0 | E168: 45 | F168: 220.2
A169: 19:55:00 | B169: 77 | C169: 86.7 | D169: 226.8 | E169: 44.5 | F169: 435
A170: 20:00:00 | B170: 73 | C170: 78 | D170: 226.8 | E170: 43 | F170: 420.8
